bitfinex-derivatives/quotes_ETHF0:USTF0_20240928
["timestamp","ask_amount","ask_price","bid_price","bid_amount"]
[1727486176487,2.79873267,2699.8,2699.0,3.2938]
[1727486176488,5.034,2699.8,2699.2,0.96667241]
[1727486176687,2.31341671,2699.4,2699.3,0.3962]
[1727486176881,2.79918088,2699.4,2699.3,0.3962]
[1727486178584,0.73716,2699.4,2699.3,0.3962]
[1727486178788,3.54078088,2699.4,2699.3,0.3962]
[1727486180083,3.54078088,2699.4,2699.1,0.37039]
[1727486180084,0.37037,2699.3,2699.1,0.37039]
[1727486180284,1.94284842,2699.2,2699.1,0.3935]
[1727486180580,1.94284842,2699.2,2699.1,0.7639]
[1727486182390,0.37038,2699.3,2699.1,3.44302097]
[1727486182691,0.37038,2699.3,2699.2,0.9673719]
[1727486183797,0.37038,2699.2,2699.1,1.3608719]
[1727486184085,0.37038,2699.2,2699.1,2.58963632]
[1727486184291,0.37038,2699.2,2699.1,1.3608719]
[1727486187486,0.37038,2699.2,2699.1,0.3935]
[1727486187692,0.37038,2699.2,2699.1,1.3608719]
[1727486188490,0.37038,2699.2,2699.1,0.3935]
[1727486189794,0.3704,2699.1,2698.9,3.4099919]
[1727486189996,1.1786,2699.1,2698.9,3.4099919]
[1727486193590,1.1786,2699.1,2698.9,2.44262]
[1727486196398,0.8082,2699.1,2698.9,2.44262]
[1727486196603,1.1786,2699.1,2698.9,2.44262]
[1727486196801,0.8082,2699.1,2698.9,2.44262]
[1727486197000,1.1786,2699.1,2698.9,2.44262]
[1727486197304,0.8082,2699.1,2699.0,0.37041]
[1727486201301,0.8082,2699.1,2699.0,1.3377819]
[1727486201496,0.8082,2699.1,2699.0,0.37041]
[1727486203710,1.1786,2699.1,2698.9,3.4099919]
[1727486203909,0.8082,2699.1,2699.0,0.37041]
[1727486204794,0.8082,2699.1,2698.9,3.0395719]
[1727486205509,1.1786,2699.1,2698.9,3.0395719]
[1727486205714,0.8082,2699.1,2698.9,3.0395719]
[1727486206004,1.33,2699.0,2698.9,0.37042]
[1727486206211,1.7174,2699.0,2698.9,0.37042]
[1727486206400,1.7174,2699.0,2698.8,1.7088019]
[1727486207496,1.7174,2699.0,2698.8,0.74143]
[1727486207497,2.08782,2699.0,2698.8,0.74143]
[1727486208397,1.7174,2699.0,2698.8,0.371]
[1727486208596,0.37042,2698.9,2698.8,0.371]
[1727486209409,1.70042,2698.9,2698.8,0.371]
[1727486210403,1.70042,2698.9,2698.5,0.9673719]
[1727486210404,5.0356,2698.9,2698.5,0.9673719]
[1727486210605,1.70046,2698.7,2698.5,1.3402719]
[1727486211007,2.07316,2698.7,2698.5,1.3402719]
[1727486211406,2.07316,2698.7,2698.5,1.7107519]
[1727486211810,2.07316,2698.7,2698.5,0.3729]
[1727486212311,0.37046,2698.6,2698.5,0.3729]
[1727486212616,2.09426,2698.6,2698.5,0.3729]
[1727486217614,11.4294,2698.6,2698.1,0.9673719]
[1727486217914,11.4294,2698.6,2697.8,5.14114483]
[1727486217915,0.37056,2697.9,2697.8,0.086]
[1727486218107,0.37056,2697.9,2697.4,0.47062]
[1727486218108,5.2988,2697.9,2697.4,0.3688]
[1727486218302,1.33,2697.5,2697.4,0.3688]
[1727486218707,1.33,2697.6,2697.4,0.3688]
[1727486220415,1.7006,2697.6,2697.4,0.3688]
[1727486223018,1.70062,2697.5,2697.4,0.3688]
[1727486223824,0.37063,2697.4,2697.3,0.3981]
[1727486224921,0.77553,2697.4,2697.3,0.3981]
[1727486225318,0.4049,2697.4,2697.0,3.5994]
[1727486225527,0.4049,2697.4,2696.5,0.086]
[1727486225528,1.33,2697.1,2696.5,0.086]
[1727486225730,1.70073,2696.7,2696.6,0.3942]
[1727486226612,1.33,2696.7,2696.6,0.3942]
[1727486226821,2.09612,2696.8,2696.6,0.3942]
[1727486227229,0.7756,2696.9,2696.6,0.3942]
[1727486227417,2.1056,2696.9,2696.6,0.3942]
[1727486227919,0.37071,2696.8,2696.6,0.3942]
[1727486228315,3.2078,2697.0,2696.6,1.7242]
[1727486228522,0.761,2697.0,2696.7,0.37072]
[1727486230124,3.97388,2697.1,2696.7,0.37072]
[1727486231931,0.37069,2697.0,2696.7,0.37072]
[1727486232430,3.2078,2697.1,2696.9,1.33]
[1727486232616,0.37066,2697.2,2697.0,0.8031]
[1727486232928,0.75605,2697.3,2697.1,0.395]
[1727486233125,0.37066,2697.2,2697.1,0.395]
[1727486233318,0.3854,2697.3,2697.1,0.395]
[1727486233319,0.75605,2697.3,2697.1,0.395]
[1727486233632,0.37063,2697.4,2697.1,0.76567]
[1727486233831,1.70063,2697.5,2697.2,0.37065]
[1727486234220,0.37063,2697.4,2697.1,2.09566]
[1727486235120,1.70063,2697.5,2697.2,0.37065]
[1727486235333,1.33,2697.5,2697.1,1.725]
[1727486235620,0.37064,2697.4,2697.1,2.09567]
[1727486236020,1.33,2697.5,2697.1,2.09567]
[1727486236021,0.37064,2697.3,2697.1,2.09567]
[1727486236231,0.37064,2697.3,2697.1,0.76567]
[1727486242026,0.37064,2697.3,2697.1,0.395]
[1727486242027,0.37066,2697.2,2697.1,0.395]
[1727486242723,1.70066,2697.2,2697.1,0.395]
[1727486243033,2.07736,2697.2,2697.1,0.395]
[1727486244031,0.37069,2697.0,2696.8,0.37071]
[1727486244331,0.37069,2697.0,2696.7,0.77412]
[1727486244537,0.3707,2696.9,2696.7,0.4034]
[1727486245037,1.7007,2696.9,2696.7,0.77412]
[1727486245430,1.33,2696.9,2696.8,0.37071]
[1727486245631,1.33,2696.9,2696.7,0.4034]
[1727486246033,1.33,2696.9,2696.7,0.77411]
[1727486246444,1.7007,2696.9,2696.7,0.77411]
[1727486247136,1.33,2696.9,2696.7,0.77411]
[1727486247527,0.37073,2696.7,2696.5,0.37075]
[1727486247732,1.7015,2696.8,2696.5,0.37075]
[1727486247931,2.07223,2696.8,2696.5,0.37075]
[1727486249142,0.37073,2696.7,2696.5,0.37075]
[1727486250249,0.37074,2696.7,2696.4,1.14936]
[1727486250541,0.7717,2696.6,2696.4,0.74427]
[1727486250736,1.14244,2696.6,2696.4,0.74427]
[1727486251738,0.7717,2696.6,2696.4,0.74427]
[1727486252040,0.7717,2696.6,2696.5,0.37075]
[1727486252437,0.3791,2696.6,2696.5,0.37075]
[1727486252635,0.74222,2696.8,2696.6,0.37073]
[1727486252937,0.37073,2696.7,2696.5,0.73725]
[1727486253740,0.37073,2696.7,2696.5,0.3665]
[1727486254040,1.70073,2696.7,2696.4,0.74426]
[1727486255727,1.70073,2696.7,2696.5,0.37075]
[1727486258042,1.33,2696.7,2696.4,0.7446]
[1727486258239,1.70073,2696.7,2696.5,0.37074]
[1727486261851,0.37073,2696.7,2696.5,0.37074]
[1727486262550,0.37073,2696.7,2696.5,1.3381119]
[1727486263237,0.37073,2696.7,2696.5,0.37074]
[1727486263645,2.4864,2696.9,2696.5,0.9673719]
[1727486263845,2.4864,2696.9,2696.6,0.9673719]
[1727486264048,2.8571,2696.9,2696.7,0.37072]
[1727486264246,2.8571,2696.9,2696.7,0.76552]
[1727486265544,2.8571,2696.9,2696.8,0.37071]
[1727486265545,2.4864,2696.9,2696.8,0.37071]
[1727486265744,1.45651845,2697.2,2697.0,0.37068]
[1727486265745,1.33,2697.2,2697.0,0.37068]
[1727486265941,2.48987,2697.2,2697.0,0.37068]
[1727486266149,2.48987,2697.2,2697.1,0.3976]
[1727486270853,2.1192,2697.2,2697.1,1.3649719]
[1727486271048,1.33,2697.2,2697.1,0.76827]
[1727486271260,1.70066,2697.2,2697.1,0.3976]
[1727486271646,1.70066,2697.2,2697.1,1.3649719]
[1727486272555,1.33,2697.2,2697.1,1.7356419]
[1727486272753,1.33,2697.2,2697.1,0.76827]
[1727486272956,1.33,2697.2,2697.1,1.7356419]
[1727486273254,1.70066,2697.2,2697.1,0.3976]
[1727486273456,1.70066,2697.2,2697.1,1.3649719]
[1727486273755,1.70066,2697.2,2697.1,0.9673719]
[1727486273952,1.70066,2697.2,2696.5,3.2078]
[1727486273953,5.038,2697.2,2696.7,1.3630719]
[1727486274148,1.70071,2696.8,2696.7,1.3630719]
[1727486275052,0.37073,2696.7,2696.6,0.9673719]
[1727486275258,0.75163,2696.7,2696.6,0.97153939]
[1727486276470,0.75163,2696.7,2696.5,1.35663939]
[1727486277257,0.37074,2696.6,2696.5,1.35663939]
[1727486277459,3.57854,2696.6,2696.5,2.58804896]
[1727486277658,3.614,2696.6,2696.5,2.5880414]
[1727486278266,3.614,2696.6,2696.5,2.58804501]
[1727486278456,3.614,2696.6,2696.5,2.58797361]
[1727486278755,3.98474,2696.6,2696.5,2.58797407]
[1727486278958,0.4062,2696.6,2696.5,1.35663939]
[1727486279159,3.614,2696.6,2696.5,1.35663939]
[1727486279365,3.614,2696.6,2696.5,2.58796746]
[1727486279567,3.614,2696.6,2696.5,1.35663939]
[1727486280255,3.614,2696.6,2696.5,2.58795206]
[1727486281668,0.4062,2696.6,2696.5,2.58795206]
[1727486281966,0.4062,2696.6,2696.5,2.58805839]
[1727486282165,0.4062,2696.6,2696.5,3.06652762]
[1727486282466,3.5887,2696.7,2696.5,3.43727762]
[1727486282663,3.5887,2696.7,2696.6,2.20286184]
[1727486282965,3.5887,2696.7,2696.6,0.97144284]
[1727486283556,3.95943,2696.7,2696.6,0.97144284]
[1727486287254,3.95943,2696.7,2696.6,2.20335672]
[1727486287672,3.95943,2696.7,2696.6,0.97144284]
[1727486287874,3.5887,2696.7,2696.6,0.97144284]
[1727486288061,0.3809,2696.7,2696.6,1.6028242]
[1727486288265,0.3809,2696.7,2696.6,2.20403305]
[1727486288266,3.5887,2696.7,2696.6,2.20403305]
[1727486288667,3.5887,2696.7,2696.6,2.68209282]
[1727486288867,3.2078,2696.7,2696.6,3.05283282]
[1727486289070,1.7156,2696.9,2696.6,1.2320842]
[1727486289369,3.2078,2697.0,2696.8,1.45794948]
[1727486289578,3.2078,2697.0,2696.9,3.72662012]
[1727486289869,3.2078,2697.0,2696.9,3.72661048]
[1727486290073,3.2078,2697.0,2696.9,2.75458609]
[1727486290767,3.2078,2697.0,2696.9,4.21253557]
[1727486291372,3.2078,2697.0,2696.9,3.84183557]
[1727486291574,4.90848,2697.0,2696.9,3.44064663]
[1727486291766,4.90848,2697.0,2696.9,1.35422645]
[1727486292478,4.90848,2697.0,2696.9,0.97202645]
[1727486292680,4.90848,2697.0,2696.9,2.20426604]
[1727486293383,4.90848,2697.0,2696.9,2.20429284]
[1727486293880,4.90848,2697.0,2696.9,0.97202645]
[1727486298274,0.3707,2696.9,2696.8,0.97202645]
[1727486298471,0.37073,2696.7,2696.6,0.97202645]
[1727486298683,0.37073,2696.7,2696.3,2.30854483]
[1727486298684,0.37074,2696.6,2696.5,0.97202645]
[1727486298880,1.70074,2696.6,2696.5,0.97202645]
[1727486299493,1.70074,2696.6,2696.4,0.97202645]
[1727486299494,13.42220673,2696.6,2696.4,0.97202645]
[1727486299692,5.42539,2696.5,2696.1,0.97202645]
[1727486299993,4.90859,2696.2,2696.0,0.97202645]
[1727486300186,0.3964,2696.1,2696.0,0.97202645]
[1727486301490,0.3964,2696.1,2695.9,1.36292645]
[1727486301689,1.33,2696.0,2695.9,1.36292645]
[1727486301890,1.33,2696.0,2695.9,2.59447294]
[1727486302398,1.33,2696.0,2695.9,1.36292645]
[1727486303899,1.33,2696.0,2695.9,0.3909]
[1727486304390,1.33,2696.0,2695.9,0.76174]
[1727486304586,0.3964,2696.1,2695.9,1.73376645]
[1727486304991,0.3964,2696.1,2695.9,0.76174]
[1727486306001,4.5378,2696.2,2696.0,0.37082]
[1727486306194,4.9086,2696.2,2695.9,0.3909]
[1727486306399,4.9086,2696.2,2695.9,0.76173]
[1727486307204,4.5378,2696.2,2696.0,0.37082]
[1727486307498,4.9086,2696.2,2695.9,0.76173]
[1727486307698,4.5378,2696.2,2695.9,0.76173]
[1727486308195,4.9086,2696.2,2695.9,0.76173]
[1727486308593,0.37081,2696.1,2695.9,0.3909]
[1727486308997,0.37081,2696.1,2695.9,0.76173]
[1727486309803,4.9086,2696.2,2695.9,0.76173]
[1727486310797,0.37081,2696.1,2695.9,0.76173]
[1727486312197,0.37081,2696.1,2695.9,0.3909]
[1727486314095,1.70082,2696.0,2695.9,0.3909]
[1727486317211,2.07712,2696.0,2695.9,0.3909]
[1727486317907,2.48102,2696.0,2695.9,0.3909]
[1727486339831,1.33,2696.0,2695.8,0.756]
[1727486340025,1.70082,2696.0,2695.9,0.3974]
[1727486341924,0.37081,2696.1,2695.9,0.3974]
[1727486342125,4.5378,2696.2,2695.9,1.36942645]
[1727486342126,0.37082,2696.0,2695.9,1.36942645]
[1727486342336,0.37082,2696.1,2695.9,1.36942645]
[1727486342529,4.5378,2696.2,2695.9,1.36942645]
[1727486342530,0.37082,2696.0,2695.9,1.36942645]
[1727486343226,0.37082,2696.0,2695.9,2.60202968]
[1727486343732,0.37082,2696.0,2695.9,1.63000323]
[1727486343928,0.37082,2696.0,2695.9,3.08795271]
[1727486344227,0.37082,2696.0,2695.9,1.6300044]
[1727486344436,0.37082,2696.0,2695.9,3.08952949]
[1727486345029,1.82697986,2696.1,2695.9,3.08952949]
[1727486345228,0.37082,2696.1,2696.0,2.69212949]
[1727486346925,1.45916767,2696.1,2696.0,2.69212949]
[1727486347430,1.82997767,2696.1,2696.0,2.69212949]
[1727486347637,0.37081,2696.1,2696.0,2.69212949]
[1727486348030,1.83000161,2696.1,2696.0,2.69212949]
[1727486348938,1.83000161,2696.1,2696.0,2.69343325]
[1727486349937,1.83000161,2696.1,2696.0,2.69345135]
[1727486351029,6.48064842,2696.2,2696.0,2.69345135]
[1727486351232,3.2078,2696.2,2696.1,3.06426135]
[1727486351427,3.2078,2696.2,2696.1,2.69345135]
[1727486351633,3.57859,2696.2,2696.1,2.69345135]
[1727486351838,5.52143842,2696.2,2696.1,2.69345135]
[1727486352040,4.34869,2696.2,2696.1,2.69345135]
[1727486352946,3.9779,2696.2,2696.1,2.69345135]
[1727486353531,5.03796792,2696.2,2696.1,2.69345135]
[1727486353736,3.2078,2696.2,2696.1,2.69345135]
[1727486353939,3.2078,2696.2,2696.1,2.69336013]
[1727486354334,3.57859,2696.2,2696.0,1.34422656]
[1727486354642,1.94591288,2696.1,2696.0,1.34422656]
[1727486354844,1.94591288,2696.1,2696.0,2.57806235]
[1727486355044,1.94591288,2696.1,2696.0,5.31345579]
[1727486355340,1.94591288,2696.1,2696.0,6.28684786]
[1727486355542,1.94591288,2696.1,2696.0,5.31345579]
[1727486355935,1.94591288,2696.1,2696.0,6.28682223]
[1727486356445,1.94591288,2696.1,2696.0,5.91600791]
[1727486356744,1.94591288,2696.1,2696.0,5.31345579]
[1727486356935,5.15371288,2696.2,2696.0,6.77298088]
[1727486357135,5.52450288,2696.2,2696.1,0.97337102]
[1727486357731,3.57859,2696.2,2696.1,0.97337102]
[1727486357936,5.52442081,2696.2,2696.1,0.97337102]
[1727486358346,3.57859,2696.2,2696.1,0.97337102]
[1727486358559,5.52441946,2696.2,2696.1,0.97337102]
[1727486360141,3.57859,2696.2,2696.1,0.97337102]
[1727486360444,5.52434741,2696.2,2696.1,0.97337102]
[1727486360638,3.57859,2696.2,2696.1,0.97337102]
[1727486360840,5.52439209,2696.2,2696.1,0.97337102]
[1727486361849,5.52433711,2696.2,2696.1,0.97337102]
[1727486362141,1.45945062,2696.3,2696.2,0.37079]
[1727486362344,3.2078,2696.5,2696.3,0.37078]
[1727486362548,3.2078,2696.5,2696.4,3.09203348]
[1727486362733,3.2078,2696.5,2696.4,1.63280814]
[1727486363545,0.37075,2696.6,2696.4,1.63222545]
[1727486363750,0.37075,2696.6,2696.5,2.69185673]
[1727486364144,0.37075,2696.6,2696.5,1.23312545]
[1727486364549,0.37075,2696.6,2696.5,0.97227601]
[1727486365048,0.37075,2696.6,2696.5,2.20470266]
[1727486365241,1.45945062,2696.7,2696.5,0.97225273]
[1727486365437,4.66725062,2696.8,2696.6,1.35935273]
[1727486365644,3.2078,2696.8,2696.7,0.97225273]
[1727486366142,3.2078,2696.8,2696.7,2.57500521]
[1727486366342,3.2078,2696.8,2696.7,6.76948376]
[1727486366538,3.2078,2696.8,2696.7,6.76756574]
[1727486366950,3.2078,2697.1,2696.9,0.3707]
[1727486367150,3.2078,2697.1,2697.0,0.7987]
[1727486367448,2.18305062,2697.4,2697.0,8.03874837]
[1727486367653,2.08024,2697.4,2697.0,2.14052201]
[1727486368047,0.37065,2697.3,2697.0,1.76984201]
[1727486368344,1.7096,2697.4,2697.1,0.37067]
[1727486368749,1.7096,2697.4,2697.2,0.4057]
[1727486369249,5.29332,2697.5,2697.2,0.4057]
[1727486369446,1.45945062,2697.4,2697.2,0.4057]
[1727486370658,6.75277062,2697.5,2697.2,0.4057]
[1727486372458,5.29332,2697.5,2697.2,0.4057]
[1727486373953,0.37063,2697.4,2697.2,0.4057]
[1727486374259,5.29332,2697.5,2697.2,0.4057]
[1727486374451,0.37063,2697.4,2697.2,0.4057]
[1727486374655,1.33,2697.4,2697.2,0.4057]
[1727486374862,0.3835,2697.3,2697.2,0.4057]
[1727486380663,0.3835,2697.3,2697.0,1.16938]
[1727486380866,0.3743,2697.2,2697.0,1.54158]
[1727486381661,0.3743,2697.2,2697.1,0.37067]
[1727486387578,0.3743,2697.2,2697.0,1.54158]
[1727486389173,0.3743,2697.2,2697.1,0.37067]
[1727486390595,0.3743,2697.2,2697.0,0.3722]
[1727486390773,0.73948,2697.1,2696.8,0.7619]
[1727486390979,3.5766,2697.1,2696.8,0.7619]
[1727486391283,1.83375062,2697.2,2696.9,0.3707]
[1727486391474,0.37068,2697.1,2696.9,0.3707]
[1727486392878,0.37068,2697.0,2696.8,0.3912]
[1727486393380,0.7737,2696.9,2696.7,0.37072]
[1727486393789,0.7737,2696.9,2696.8,0.37071]
[1727486395283,1.1444,2696.9,2696.7,0.37072]
[1727486395577,0.7737,2696.9,2696.7,0.37072]
[1727486395778,0.7737,2696.9,2696.8,0.37071]
[1727486399575,0.4049,2696.9,2696.8,0.37071]
[1727486400386,3.5887,2697.1,2696.7,1.33]
[1727486400387,5.41883062,2697.1,2696.9,0.3707]
[1727486400590,5.41268528,2697.1,2697.0,0.4016]
[1727486400979,5.04200528,2697.1,2697.0,0.4016]
[1727486401184,5.41267528,2697.1,2697.0,0.4016]
[1727486401392,5.41269607,2697.1,2697.0,0.4016]
[1727486401690,3.95937,2697.1,2697.0,0.4016]
[1727486401986,0.37069,2697.0,2696.7,1.33]
[1727486402191,0.37069,2697.0,2696.8,0.4016]
[1727486402192,1.8242459,2697.0,2696.8,0.4016]
[1727486402391,0.4062,2696.9,2696.8,0.4016]
[1727486402890,0.7769,2696.9,2696.7,0.37072]
[1727486403094,0.7806,2696.8,2696.7,0.37072]
[1727486403495,2.2341559,2696.8,2696.7,0.37072]
[1727486405590,0.7806,2696.8,2696.7,0.37072]
[1727486406695,3.09705711,2696.8,2696.6,1.52223]
[1727486406889,1.45564934,2696.7,2696.6,1.52223]
[1727486407692,2.72634711,2696.8,2696.7,0.37073]
[1727486407693,0.7806,2696.8,2696.7,0.37073]
[1727486407888,0.77691,2696.9,2696.7,2.57325754]
[1727486408093,0.77691,2696.9,2696.7,1.34200575]
[1727486408282,0.77691,2696.9,2696.6,2.60821301]
[1727486408283,0.4062,2696.9,2696.8,1.34198575]
[1727486409200,0.7769,2696.9,2696.8,0.97127575]
[1727486409396,0.7769,2696.9,2696.7,0.97127575]
[1727486409600,0.7769,2696.9,2696.8,0.97127575]
[1727486412801,0.4062,2696.9,2696.8,0.97127575]
[1727486413001,0.4062,2696.9,2696.8,1.34198575]
[1727486413301,0.4062,2696.9,2696.8,0.97127575]
[1727486413502,0.7769,2696.9,2696.8,0.97127575]
[1727486414602,0.7769,2696.9,2696.7,1.34199575]
[1727486414795,2.23254934,2696.9,2696.7,1.34199575]
[1727486415603,1.86184934,2696.9,2696.7,1.34199575]
[1727486415903,1.86184934,2696.9,2696.8,0.37071]
[1727486416105,1.86184934,2696.9,2696.7,1.34199575]
[1727486417099,2.23254934,2696.9,2696.7,1.34199575]
[1727486417408,2.23254934,2696.9,2696.7,0.37072]
[1727486417598,2.23254934,2696.9,2696.7,1.34199575]
[1727486417798,1.86184934,2696.9,2696.7,1.34199575]
[1727486418399,0.7769,2696.9,2696.7,1.34199575]
[1727486418594,1.82634934,2696.9,2696.7,1.34199575]
[1727486419211,1.45564934,2696.9,2696.7,0.97127575]
[1727486419408,0.37071,2696.8,2696.6,2.49350575]
[1727486420604,1.45564934,2696.9,2696.7,0.37072]
[1727486420910,1.82634934,2696.9,2696.7,1.34199575]
[1727486422208,1.82634934,2696.9,2696.7,0.37072]
[1727486422713,2.42882088,2696.8,2696.7,0.37072]
[1727486423313,2.42882088,2696.8,2696.6,1.52223]
[1727486424612,2.79954088,2696.8,2696.6,1.52223]
[1727486425408,2.79954088,2696.8,2696.6,1.1515]
[1727486425609,0.37073,2696.7,2696.6,1.1515]
[1727486425809,2.79955088,2696.7,2696.6,0.4053]
[1727486426009,3.97925088,2696.7,2696.6,0.4053]
[1727486426528,0.37076,2696.5,2696.3,1.12987]
[1727486426723,2.31411141,2696.5,2696.4,0.4067]
[1727486427018,0.37076,2696.5,2696.4,0.4067]
[1727486427411,0.37076,2696.5,2696.4,0.77747]
[1727486427912,2.79993926,2696.6,2696.4,0.77747]
[1727486428510,3.75918926,2696.5,2696.2,0.37079]
[1727486428713,2.42918926,2696.4,2696.1,0.3928]
[1727486428913,2.42918926,2696.3,2696.2,0.37079]
[1727486429114,3.19645926,2696.4,2696.2,0.37079]
[1727486429305,2.42918926,2696.3,2696.2,0.37079]
[1727486429507,2.79996926,2696.3,2696.1,0.7636]
[1727486429708,0.37078,2696.3,2696.2,2.6889251]
[1727486430425,0.37078,2696.3,2696.2,1.23221209]
[1727486430624,0.37078,2696.3,2696.2,2.68877773]
[1727486431013,0.37078,2696.3,2696.2,1.23206472]
[1727486432224,0.37078,2696.3,2696.2,2.20392484]
[1727486432615,0.3965,2696.4,2696.2,2.57471484]
[1727486432918,0.76727,2696.4,2696.3,2.20350469]
[1727486433116,0.76727,2696.4,2696.3,0.97175172]
[1727486435121,0.37078,2696.3,2696.2,1.45671301]
[1727486435320,0.75698,2696.3,2696.2,0.97170899]
[1727486435619,0.75698,2696.3,2696.2,2.20326429]
[1727486435819,0.75698,2696.3,2696.2,0.97166588]
[1727486435820,1.15768,2696.3,2696.2,0.97166588]
[1727486436422,0.37079,2696.2,2696.0,5.84515758]
[1727486436618,1.70079,2696.2,2696.0,5.84515758]
[1727486436917,0.3931,2696.1,2696.0,5.84515758]
[1727486441621,1.7231,2696.1,2696.0,5.47434758]
[1727486441811,1.7231,2696.1,2695.9,0.3963]
[1727486442121,0.37084,2695.9,2695.8,0.97166588]
[1727486442326,0.37083,2696.0,2695.7,1.34252588]
[1727486442625,0.7613,2695.8,2695.7,1.34252588]
[1727486442825,0.7613,2695.8,2695.7,0.97166588]
[1727486443024,0.7613,2695.8,2695.6,1.72416588]
[1727486443215,1.13215,2695.8,2695.6,1.72416588]
[1727486444717,1.13215,2695.8,2695.6,0.7525]
[1727486447024,0.7613,2695.8,2695.6,1.12338]
[1727486447218,1.13215,2695.8,2695.6,0.7525]
[1727486447418,0.7613,2695.8,2695.6,0.7525]
[1727486447620,1.13216,2695.8,2695.6,0.7525]
[1727486449421,1.70086,2695.7,2695.6,0.3782]
[1727486449622,1.70086,2695.7,2695.5,0.37089]
[1727486449826,1.33,2695.7,2695.5,0.37089]
[1727486450024,1.70086,2695.7,2695.5,0.37089]
[1727486450734,1.33,2695.7,2695.5,0.37089]
[1727486451720,1.33,2695.7,2695.6,0.3892]
[1727486452040,1.33,2695.7,2695.6,0.76008]
[1727486452222,1.33,2695.7,2695.6,0.3892]
[1727486454527,1.70086,2695.7,2695.6,0.3892]
[1727486455434,0.37086,2695.7,2695.6,0.3892]
[1727486455733,1.13216,2695.8,2695.6,0.3892]
[1727486456535,0.37086,2695.7,2695.6,0.3892]
[1727486458834,1.13215,2695.8,2695.6,0.3892]
[1727486459330,0.37086,2695.7,2695.6,0.3892]
[1727486460736,1.70086,2695.7,2695.6,0.3892]
[1727486467132,0.37089,2695.5,2695.3,0.76602]
[1727486467433,0.37089,2695.5,2695.4,0.3806]
[1727486467434,1.70089,2695.5,2695.4,0.3806]
[1727486471730,1.70089,2695.6,2695.4,0.7515]
[1727486471934,0.37087,2695.7,2695.5,0.37089]
[1727486473944,1.13215,2695.8,2695.6,0.37088]
[1727486474136,1.13215,2695.8,2695.7,0.3865]
[1727486475240,2.58917181,2695.8,2695.7,0.3865]
[1727486476048,2.58588707,2695.8,2695.7,0.3865]
[1727486476238,1.13215,2695.8,2695.7,0.3865]
[1727486476443,4.84175,2695.8,2695.7,0.3865]
[1727486476741,1.13215,2695.8,2695.7,0.3865]
[1727486478340,3.07492468,2695.8,2695.7,0.3865]
[1727486478542,1.13215,2695.8,2695.7,0.3865]
[1727486478846,1.45434784,2695.8,2695.7,0.75736]
[1727486479754,1.45434784,2695.8,2695.7,1.15506]
[1727486481743,2.78434784,2695.8,2695.7,0.7842]
[1727486481936,2.5031,2695.8,2695.7,0.7842]
[1727486482140,2.5031,2695.8,2695.7,1.75586588]
[1727486482141,2.87395,2695.8,2695.7,1.75586588]
[1727486482337,2.87395,2695.8,2695.7,2.98829661]
[1727486482745,2.87395,2695.8,2695.7,1.75586588]
[1727486483141,2.87395,2695.8,2695.7,0.97166588]
[1727486483348,0.37086,2695.7,2695.6,0.97166588]
[1727486483552,4.5378,2695.7,2695.6,0.9724788]
[1727486483851,0.37088,2695.6,2695.5,0.9724788]
[1727486484254,0.37088,2695.6,2695.5,2.20526365]
[1727486484449,0.37088,2695.6,2695.5,0.9724788]
[1727486485342,1.82593562,2695.6,2695.5,0.9724788]
[1727486485744,0.37089,2695.5,2695.4,1.3598788]
[1727486485949,3.15594562,2695.5,2695.4,0.9724788]
[1727486486152,0.37092,2695.3,2695.2,0.9724788]
[1727486486346,0.37092,2695.3,2695.2,2.20538098]
[1727486486547,0.37092,2695.3,2695.2,1.23290218]
[1727486486750,0.37092,2695.3,2695.2,2.68961519]
[1727486487256,0.37092,2695.3,2695.2,1.23290218]
[1727486487458,0.37092,2695.3,2695.2,1.45671301]
[1727486487646,0.37092,2695.3,2695.2,1.23311998]
[1727486488050,0.37092,2695.3,2695.2,2.20589741]
[1727486488250,0.37092,2695.3,2695.2,1.23311998]
[1727486489251,0.37092,2695.3,2695.2,2.20583217]
[1727486489552,0.37092,2695.3,2695.2,2.20584097]
[1727486489959,1.70092,2695.3,2695.2,2.20584097]
[1727486490258,1.33,2695.3,2695.2,2.20541472]
[1727486490557,1.33,2695.3,2695.2,1.23278773]
[1727486492156,1.33,2695.3,2695.2,2.20530914]
[1727486492456,1.70092,2695.3,2695.2,1.23266639]
[1727486492755,1.70092,2695.3,2695.2,2.20519691]
[1727486494654,1.70092,2695.3,2695.2,0.97253052]
[1727486494961,1.70092,2695.3,2695.2,2.20513792]
[1727486495361,1.70092,2695.3,2695.2,0.97253052]
[1727486497054,3.15599236,2695.3,2695.2,0.97253052]
[1727486497261,3.15599236,2695.3,2695.0,1.35023052]
[1727486497262,0.37093,2695.2,2695.0,1.35023052]
[1727486497461,3.15600236,2695.3,2695.0,1.72119052]
[1727486498360,1.45507236,2695.2,2695.0,0.74866]
[1727486498762,3.15600236,2695.3,2695.0,0.74866]
[1727486498956,1.33,2695.1,2695.0,0.3777]
[1727486501369,1.706,2695.1,2695.0,0.3777]
[1727486504054,1.33,2695.2,2695.0,0.74865]
[1727486504258,1.70094,2695.2,2695.0,0.3777]
[1727486504966,1.33,2695.2,2695.0,0.3777]
[1727486505159,1.33,2695.2,2695.0,1.35023052]
[1727486505359,0.37095,2695.1,2695.0,1.35023052]
[1727486505866,4.5378,2695.3,2695.1,0.37094]
[1727486506068,1.70092,2695.3,2695.2,0.7765]
[1727486510473,1.70092,2695.3,2695.2,0.375]
[1727486511375,2.08952,2695.3,2695.2,0.375]
[1727486511581,1.70092,2695.3,2695.2,0.375]
[1727486513371,3.15495117,2695.3,2695.2,0.375]
[1727486514272,1.70092,2695.3,2695.2,0.375]
[1727486514668,3.15505775,2695.3,2695.2,0.375]
[1727486515570,3.15533735,2695.3,2695.2,0.375]
[1727486515973,3.15531781,2695.3,2695.2,0.375]